[Event "36th Indian-ch U13 Girls 2023"]
[Site "Secunderabad"]
[Date "2023.12.07"]
[Round "7.4"]
[White "Kirthika B"]
[Black "Singh Myra"]
[Result "1-0"]
[ECO "C68"]
[WhiteElo "1605"]
[BlackElo "1454"]
[Annotator "NA RC"]
[PlyCount "87"]
[EventDate "2023.12.04"]
[EventType "swiss"]
[EventCountry "IND"]
[SourceTitle "playchess.com"]
[Source "ChessBase"]
[SourceQuality "1"]
[TimeControl "5400+30"]

1. e4 {[%emt 0:00:03]} e5 {[%emt 0:00:05]} 2. Nf3 {[%emt 0:00:03]} Nc6 {[%emt 0:00:03]} 3. Bb5 {[%emt 0:00:06]} a6 {[%emt 0:00:04]} 4. Bxc6 {[%emt 0:00:03]} dxc6 {[%emt 0:00:06]} 5. O-O {[%emt 0:00:05]} Bd6 {[%emt 0:00:05]} 6. d4 {[%emt 0:00:04]} exd4 {[%emt 0:00:12]} 7. Qxd4 {[%emt 0:00:05]} f6 {[%emt 0:00:09]} 8. Be3 {[%emt 0:00:16]} Be6 {[%emt 0:00:19]} 9. Nbd2 {[%emt 0:03:16]} Ne7 {[%emt 0:00:10]} 10. Qc3 {[%emt 0:00:50]} Qd7 {[%emt 0:00:08]} 11. Nb3 {[%emt 0:09:04]} Bxb3 {[%emt 0:05:48]} 12. axb3 {[%emt 0:04:34]} O-O {[%emt 0:01:33]} 13. Qc4+ {[%emt 0:02:32]} Kh8 {[%emt 0:00:07]} 14. Rad1 {[%emt 0:00:40]} Ng6 {[%emt 0:01:40]} 15. Nd4 {[%emt 0:15:17]} Ne5 {[%emt 0:09:09]} 16. Qe2 {[%emt 0:00:46]} Ng4 {[%emt 0:03:12]} 17. h3 {[%emt 0:01:09]} Nxe3 {[%emt 0:00:13]} 18. Qxe3 {[%emt 0:00:18]} Rfe8 {[%emt 0:01:38]} 19. Rfe1 {[%emt 0:07:38]} Rad8 {[%emt 0:04:15]} 20. Nf5 {[%emt 0:03:49]} Qe6 {[%emt 0:00:56]} 21. f4 {[%emt 0:07:12]} b6 {[%emt 0:01:40]} 22. Qf3 {[%emt 0:02:42]} Bc5+ {[%emt 0:18:12]} 23. Kh1 {[%emt 0:00:27]} Rxd1 {[%emt 0:00:56]} 24. Rxd1 {[%emt 0:00:57]} g6 {[%emt 0:01:23]} 25. Ng3 {[%emt 0:01:50]} Kg7 {[%emt 0:01:29]} 26. f5 {[%emt 0:07:22]} Qe5 {[%emt 0:01:11]} 27. Qg4 {[%emt 0:03:18]} g5 {[%emt 0:02:48]} 28. h4 {[%emt 0:04:30]} Bd6 {[%emt 0:01:49]} 29. Rd3 {[%emt 0:06:41]} Kh8 {[%emt 0:10:35]} 30. hxg5 {[%emt 0:01:09]} fxg5 {[%emt 0:00:29]} 31. Rf3 {[%emt 0:02:27]} Rf8 {[%emt 0:02:10]} 32. f6 {[%emt 0:05:01]} Rxf6 {[%emt 0:06:10]} 33. Qc8+ {[%emt 0:00:44]} Bf8 {[%emt 0:00:15]} 34. Rxf6 {[%emt 0:00:58]} Qxf6 {[%emt 0:00:14]} 35. e5 {[%emt 0:00:27]} Qf2 {[%emt 0:04:44]} 36. e6 {[%emt 0:06:02]} h5 {[%emt 0:05:30]} 37. Kh2 {[%emt 0:04:05]} Kh7 {[%emt 0:03:07]} 38. Qd7+ {[%emt 0:01:59]} Kh6 {[%emt 0:02:24]} 39. e7 {[%emt 0:00:35]} Bxe7 {[%emt 0:00:53]} 40. Qxe7 {[%emt 0:00:51]} h4 {[%emt 0:00:50]} 41. Qe6+ {[%emt 0:00:16]} Kg7 {[%emt 0:00:26]} 42. Nf5+ {[%emt 0:00:09]} Kh7 {[%emt 0:00:40]} 43. Qh6+ {[%emt 0:00:05]} Kg8 {[%emt 0:00:03]} 44. Qg7# {[%emt 0:00:04]} 1-0

[Event "36th Indian-ch U13 Girls 2023"]
[Site "Secunderabad"]
[Date "2023.12.07"]
[Round "7.5"]
[White "Sherali Pattnaik"]
[Black "Shivamshika G"]
[Result "1/2-1/2"]
[ECO "C18"]
[WhiteElo "1575"]
[BlackElo "1424"]
[Annotator "NA RC"]
[PlyCount "62"]
[EventDate "2023.12.04"]
[EventType "swiss"]
[EventCountry "IND"]
[SourceTitle "playchess.com"]
[Source "ChessBase"]
[SourceQuality "1"]
[TimeControl "5400+30"]

1. e4 {[%emt 0:01:09]} e6 {[%emt 0:00:17]} 2. d4 {[%emt 0:00:03]} d5 {[%emt 0:00:09]} 3. Nc3 {[%emt 0:00:03]} Bb4 {[%emt 0:01:35]} 4. e5 {[%emt 0:00:07]} c5 {[%emt 0:00:05]} 5. a3 {[%emt 0:00:03]} Bxc3+ {[%emt 0:00:55]} 6. bxc3 {[%emt 0:00:05]} Ne7 {[%emt 0:01:43]} 7. Qg4 {[%emt 0:00:46]} Qc7 {[%emt 0:02:10]} 8. Qxg7 {[%emt 0:01:01]} Rg8 {[%emt 0:00:52]} 9. Qxh7 {[%emt 0:00:04]} cxd4 {[%emt 0:00:57]} 10. Ne2 {[%emt 0:00:07]} dxc3 {[%emt 0:02:22]} 11. f4 {[%emt 0:00:15]} Nbc6 {[%emt 0:01:44]} 12. Qd3 {[%emt 0:00:06]} d4 {[%emt 0:02:18]} 13. Nxd4 {[%emt 0:00:05]} Nxd4 {[%emt 0:00:18]} 14. Qxd4 {[%emt 0:00:03]} Bd7 {[%emt 0:01:10]} 15. Rg1 {[%emt 0:02:07]} b6 {[%emt 0:13:11]} 16. Qc4 {[%emt 0:19:00]} Qb7 {[%emt 0:06:23]} 17. g3 {[%emt 0:19:28]} Rc8 {[%emt 0:01:46]} 18. Qe2 {[%emt 0:01:06]} Nf5 {[%emt 0:01:10]} 19. Bg2 {[%emt 0:04:10]} Bc6 {[%emt 0:01:03]} 20. Qf2 {[%emt 0:12:29]} Rd8 {[%emt 0:03:07]} 21. g4 {[%emt 0:07:32]} Bxg2 {[%emt 0:07:04]} 22. Qxg2 {[%emt 0:05:14]} Qd7 {[%emt 0:00:35]} 23. Qe2 {[%emt 0:01:17]} Nd4 {[%emt 0:00:36]} 24. Qe4 {[%emt 0:00:05]} Qa4 {[%emt 0:00:56]} 25. Kf2 {[%emt 0:05:14]} Rh8 {[%emt 0:04:48]} 26. Kg2 {[%emt 0:06:48]} Rg8 {[%emt 0:00:11]} 27. Kf2 {[%emt 0:00:01]} Rh8 {[%emt 0:00:01]} 28. Kg2 {[%emt 0:00:01]} Rg8 {[%emt 0:00:16]} 29. Kf2 {[%emt 0:00:01]} Rh8 {[%emt 0:00:07]} 30. Kg2 {[%emt 0:00:20]} Rg8 {[%emt 0:00:04]} 31. Kf2 {[%emt 0:17:10]} Rh8 {[%emt 0:00:00]} 1/2-1/2

[Event "36th Indian-ch U13 Girls 2023"]
[Site "Secunderabad"]
[Date "2023.12.07"]
[Round "7.6"]
[White "Saranya Devi Narahari"]
[Black "Aamuktha Guntaka"]
[Result "0-1"]
[ECO "C78"]
[WhiteElo "1392"]
[BlackElo "1532"]
[Annotator "NA RC"]
[PlyCount "85"]
[EventDate "2023.12.04"]
[EventType "swiss"]
[EventCountry "IND"]
[SourceTitle "playchess.com"]
[Source "ChessBase"]
[SourceQuality "1"]
[TimeControl "5400+30"]

1. e4 {[%emt 0:03:03]} e5 {[%emt 0:00:48]} 2. Nf3 {[%emt 0:00:23]} Nc6 {[%emt 0:00:12]} 3. Bb5 {[%emt 0:01:16]} a6 {[%emt 0:00:12]} 4. Ba4 {[%emt 0:00:04]} Nf6 {[%emt 0:00:11]} 5. O-O {[%emt 0:00:06]} b5 {[%emt 0:00:16]} 6. Bb3 {[%emt 0:00:22]} Bc5 {[%emt 0:00:13]} 7. c3 {[%emt 0:01:01]} d6 {[%emt 0:00:12]} 8. d3 {[%emt 0:00:11]} h6 {[%emt 0:01:49]} 9. h3 {[%emt 0:03:36]} O-O {[%emt 0:01:05]} 10. Be3 {[%emt 0:00:36]} Bxe3 {[%emt 0:05:59]} 11. fxe3 {[%emt 0:00:49]} Ne7 {[%emt 0:04:45]} 12. Qe1 {[%emt 0:05:35]} Ng6 {[%emt 0:04:25]} 13. Nbd2 {[%emt 0:12:04]} Bb7 {[%emt 0:03:19]} 14. Qg3 {[%emt 0:01:05]} Kh7 {[%emt 0:02:50]} 15. Nh2 {[%emt 0:03:51]} c5 {[%emt 0:37:16]} 16. Bc2 {[%emt 0:28:21]} Qe7 {[%emt 0:13:54]} 17. Rae1 {[%emt 0:06:40]} Rae8 {[%emt 0:03:21]} 18. Qf2 {[%emt 0:06:52]} Bc8 {[%emt 0:02:25]} 19. Kh1 {[%emt 0:03:23]} d5 {[%emt 0:04:05]} 20. d4 {[%emt 0:04:47]} dxe4 {[%emt 0:02:34]} 21. Nxe4 {[%emt 0:01:55]} Nxe4 {[%emt 0:00:40]} 22. Bxe4 {[%emt 0:00:05]} f5 {[%emt 0:01:29]} 23. Bc6 {[%emt 0:00:58]} Rd8 {[%emt 0:00:28]} 24. a4 {[%emt 0:04:08]} bxa4 {[%emt 0:02:15]} 25. Qc2 {[%emt 0:06:09]} cxd4 {[%emt 0:04:07]} 26. cxd4 {[%emt 0:01:51]} exd4 {[%emt 0:01:35]} 27. exd4 {[%emt 0:00:15]} Qb4 {[%emt 0:01:03]} 28. d5 {[%emt 0:00:35]} Bd7 {[%emt 0:01:47]} 29. Bxd7 {[%emt 0:04:06]} Rxd7 {[%emt 0:00:05]} 30. Re6 {[%emt 0:00:23]} Nf4 {[%emt 0:01:33]} 31. Rxa6 {[%emt 0:00:26]} Nxd5 {[%emt 0:00:31]} 32. Rc6 {[%emt 0:01:34]} Ne3 {[%emt 0:00:30]} 33. Qe2 {[%emt 0:00:00]} Nxf1 {[%emt 0:00:10]} 34. Nxf1 {[%emt 0:00:00]} Re7 {[%emt 0:00:22]} 35. Qf3 {[%emt 0:00:55]} Qe4 {[%emt 0:00:17]} 36. Qc3 {[%emt 0:00:28]} Qe1 {[%emt 0:00:21]} 37. Qf3 {[%emt 0:00:03]} Qe2 {[%emt 0:00:48]} 38. Qf4 {[%emt 0:00:37]} Re4 {[%emt 0:00:36]} 39. Qc1 {[%emt 0:00:54]} Rd8 {[%emt 0:00:44]} 40. Kh2 {[%emt 0:00:31]} Rd1 {[%emt 0:00:18]} 41. Qc5 {[%emt 0:00:14]} Qxf1 {[%emt 0:00:21]} 42. Rc7 {[%emt 0:00:37]} Qf4+ {[%emt 0:00:11]} 43. g3 {[%emt 0:00:04]} 0-1

[Event "36th Indian-ch U13 Girls 2023"]
[Site "Secunderabad"]
[Date "2023.12.07"]
[Round "7.7"]
[White "Shradha Smaranika Nanda"]
[Black "Nihira Koul"]
[Result "0-1"]
[ECO "C01"]
[WhiteElo "1235"]
[BlackElo "1484"]
[Annotator "NA RC"]
[PlyCount "170"]
[EventDate "2023.12.04"]
[EventType "swiss"]
[EventCountry "IND"]
[SourceTitle "playchess.com"]
[Source "ChessBase"]
[SourceQuality "1"]
[TimeControl "5400+30"]

1. e4 {[%emt 0:00:27]} e6 {[%emt 0:00:29]} 2. d4 {[%emt 0:00:08]} d5 {[%emt 0:00:05]} 3. exd5 {[%emt 0:00:05]} exd5 {[%emt 0:00:05]} 4. c4 {[%emt 0:00:08]} c6 {[%emt 0:00:53]} 5. Nc3 {[%emt 0:01:25]} Nf6 {[%emt 0:00:37]} 6. Bg5 {[%emt 0:05:06]} Be7 {[%emt 0:00:22]} 7. Be2 {[%emt 0:02:49]} Be6 {[%emt 0:05:21]} 8. Qb3 {[%emt 0:09:20]} Qc7 {[%emt 0:20:32]} 9. Bxf6 {[%emt 0:02:12]} Bxf6 {[%emt 0:01:15]} 10. cxd5 {[%emt 0:00:14]} cxd5 {[%emt 0:00:25]} 11. Nb5 {[%emt 0:11:36]} Qd7 {[%emt 0:03:45]} 12. Qg3 {[%emt 0:05:16]} Na6 {[%emt 0:01:22]} 13. Nd6+ {[%emt 0:01:53]} Ke7 {[%emt 0:00:08]} 14. Nb5 {[%emt 0:01:48]} Kf8 {[%emt 0:02:09]} 15. Nf3 {[%emt 0:04:12]} Nb4 {[%emt 0:03:54]} 16. O-O {[%emt 0:00:52]} Nc6 {[%emt 0:00:53]} 17. Rfd1 {[%emt 0:06:09]} a6 {[%emt 0:00:36]} 18. Nc3 {[%emt 0:05:48]} Rd8 {[%emt 0:11:47]} 19. Rac1 {[%emt 0:09:08]} g6 {[%emt 0:02:07]} 20. Qf4 {[%emt 0:04:10]} Kg7 {[%emt 0:01:17]} 21. Na4 {[%emt 0:07:54]} Be7 {[%emt 0:01:13]} 22. Nc5 {[%emt 0:04:12]} Bxc5 {[%emt 0:01:05]} 23. Rxc5 {[%emt 0:01:28]} Qd6 {[%emt 0:02:53]} 24. Qxd6 {[%emt 0:02:35]} Rxd6 {[%emt 0:00:05]} 25. Rdc1 {[%emt 0:00:16]} Bg4 {[%emt 0:01:06]} 26. Kf1 {[%emt 0:05:11]} Bxf3 {[%emt 0:13:38]} 27. Bxf3 {[%emt 0:00:14]} Rhd8 {[%emt 0:03:25]} 28. Rd1 {[%emt 0:01:56]} Kf6 {[%emt 0:04:46]} 29. g3 {[%emt 0:02:00]} Ne7 {[%emt 0:02:46]} 30. Kg2 {[%emt 0:02:18]} Rc6 {[%emt 0:01:27]} 31. Rcc1 {[%emt 0:04:39]} Rdc8 {[%emt 0:00:41]} 32. Rxc6+ {[%emt 0:00:27]} Rxc6 {[%emt 0:00:07]} 33. Rd2 {[%emt 0:00:30]} Ke6 {[%emt 0:00:40]} 34. Kf1 {[%emt 0:00:27]} Kd6 {[%emt 0:00:23]} 35. Ke2 {[%emt 0:00:32]} Nf5 {[%emt 0:00:25]} 36. b3 {[%emt 0:00:31]} Rb6 {[%emt 0:01:05]} 37. Bg4 {[%emt 0:00:28]} Ng7 {[%emt 0:00:39]} 38. Ke3 {[%emt 0:00:34]} f5 {[%emt 0:00:18]} 39. Bf3 {[%emt 0:00:23]} Ne6 {[%emt 0:00:23]} 40. Bg2 {[%emt 0:00:37]} Rc6 {[%emt 0:00:49]} 41. f4 {[%emt 0:00:30]} Rc3+ {[%emt 0:00:58]} 42. Ke2 {[%emt 0:00:23]} b5 {[%emt 0:00:31]} 43. Bh1 {[%emt 0:00:38]} a5 {[%emt 0:01:49]} 44. Bf3 {[%emt 0:00:29]} a4 {[%emt 0:00:26]} 45. bxa4 {[%emt 0:00:30]} bxa4 {[%emt 0:00:07]} 46. Bg2 {[%emt 0:00:30]} Rc4 {[%emt 0:00:51]} 47. Ke3 {[%emt 0:00:20]} Rb4 {[%emt 0:00:10]} 48. Bf3 {[%emt 0:00:33]} Rc4 {[%emt 0:01:55]} 49. Bd1 {[%emt 0:00:37]} Kc6 {[%emt 0:04:47]} 50. Rc2 {[%emt 0:00:30]} Rxc2 {[%emt 0:02:52]} 51. Bxc2 {[%emt 0:00:12]} Kb5 {[%emt 0:01:32]} 52. a3 {[%emt 0:00:49]} Kc4 {[%emt 0:03:44]} 53. Bxa4 {[%emt 0:00:07]} Nxd4 {[%emt 0:00:05]} 54. Bd1 {[%emt 0:00:43]} Kc3 {[%emt 0:00:30]} 55. a4 {[%emt 0:00:37]} Nc6 {[%emt 0:00:06]} 56. Bf3 {[%emt 0:00:31]} d4+ {[%emt 0:00:11]} 57. Ke2 {[%emt 0:00:31]} d3+ {[%emt 0:01:06]} 58. Kd1 {[%emt 0:00:29]} Nb4 {[%emt 0:00:42]} 59. a5 {[%emt 0:00:21]} d2 {[%emt 0:00:23]} 60. Ke2 {[%emt 0:00:35]} Nc2 {[%emt 0:01:12]} 61. a6 {[%emt 0:00:33]} Ne1 {[%emt 0:00:35]} 62. a7 {[%emt 0:00:30]} Kc2 {[%emt 0:00:04]} 63. Ke3 {[%emt 0:00:33]} Nxf3 {[%emt 0:00:14]} 64. a8=Q {[%emt 0:00:05]} d1=Q {[%emt 0:00:10]} 65. Qa4+ {[%emt 0:00:26]} Kc1 {[%emt 0:00:32]} 66. Qxd1+ {[%emt 0:00:12]} Kxd1 {[%emt 0:00:04]} 67. Kxf3 {[%emt 0:00:07]} Ke1 {[%emt 0:00:09]} 68. g4 {[%emt 0:01:34]} Kd2 {[%emt 0:01:04]} 69. h4 {[%emt 0:00:35]} h5 {[%emt 0:01:00]} 70. g5 {[%emt 0:00:31]} Kd3 {[%emt 0:00:07]} 71. Kf2 {[%emt 0:00:27]} Ke4 {[%emt 0:00:05]} 72. Kg3 {[%emt 0:00:24]} Ke3 {[%emt 0:00:04]} 73. Kg2 {[%emt 0:00:34]} Kxf4 {[%emt 0:00:05]} 74. Kf2 {[%emt 0:00:04]} Kg4 {[%emt 0:00:05]} 75. Kg2 {[%emt 0:00:05]} Kxh4 {[%emt 0:00:04]} 76. Kh2 {[%emt 0:00:05]} Kxg5 {[%emt 0:00:04]} 77. Kh1 {[%emt 0:00:10]} Kg4 {[%emt 0:00:04]} 78. Kh2 {[%emt 0:00:06]} f4 {[%emt 0:00:03]} 79. Kh1 {[%emt 0:00:05]} Kg3 {[%emt 0:00:08]} 80. Kg1 {[%emt 0:00:04]} f3 {[%emt 0:00:10]} 81. Kh1 {[%emt 0:00:09]} h4 {[%emt 0:00:04]} 82. Kg1 {[%emt 0:00:04]} f2+ {[%emt 0:00:18]} 83. Kf1 {[%emt 0:00:08]} h3 {[%emt 0:00:05]} 84. Ke2 {[%emt 0:00:04]} h2 {[%emt 0:00:04]} 85. Ke3 {[%emt 0:00:02]} h1=Q {[%emt 0:00:11]} 0-1

[Event "36th Indian-ch U13 Girls 2023"]
[Site "Secunderabad"]
[Date "2023.12.07"]
[Round "7.8"]
[White "Pratiti Khandelwal"]
[Black "Saparya Ghosh"]
[Result "0-1"]
[ECO "B23"]
[WhiteElo "1412"]
[BlackElo "1662"]
[Annotator "NA RC"]
[PlyCount "128"]
[EventDate "2023.12.04"]
[EventType "swiss"]
[EventCountry "IND"]
[SourceTitle "playchess.com"]
[Source "ChessBase"]
[SourceQuality "1"]
[TimeControl "5400+30"]

1. e4 {[%emt 0:00:02]} c5 {[%emt 0:00:41]} 2. Nc3 {[%emt 0:00:18]} Nc6 {[%emt 0:00:07]} 3. Bb5 {[%emt 0:00:05]} Nd4 {[%emt 0:00:09]} 4. Nf3 {[%emt 0:00:21]} g6 {[%emt 0:00:14]} 5. Bc4 {[%emt 0:00:29]} Bg7 {[%emt 0:00:22]} 6. Nxd4 {[%emt 0:00:43]} cxd4 {[%emt 0:00:17]} 7. Qf3 {[%emt 0:00:47]} e6 {[%emt 0:02:01]} 8. Nb5 {[%emt 1:31:45]} d6 {[%emt 0:05:07]} 9. Qa3 {[%emt 0:00:00]} Ke7 {[%emt 0:04:41]} 10. Qd3 {[%emt 0:00:00]} Qb6 {[%emt 0:04:54]} 11. c3 {[%emt 0:00:00]} dxc3 {[%emt 0:04:30]} 12. dxc3 {[%emt 0:00:00]} a6 {[%emt 0:03:29]} 13. Be3 {[%emt 0:00:00]} Qd8 {[%emt 0:02:42]} 14. Nd4 {[%emt 0:00:00]} Nf6 {[%emt 0:06:04]} 15. f3 {[%emt 0:00:00]} Qc7 {[%emt 0:07:05]} 16. O-O {[%emt 0:00:00]} Re8 {[%emt 0:06:19]} 17. Rad1 {[%emt 0:00:00]} Kf8 {[%emt 0:02:49]} 18. Bb3 {[%emt 0:00:00]} Kg8 {[%emt 0:02:27]} 19. Nc2 {[%emt 0:00:00]} d5 {[%emt 0:00:47]} 20. exd5 {[%emt 0:00:00]} exd5 {[%emt 0:00:26]} 21. Bd4 {[%emt 0:00:00]} Be6 {[%emt 0:06:39]} 22. Ne3 {[%emt 0:00:00]} Rad8 {[%emt 0:01:01]} 23. Qc2 {[%emt 0:00:00]} Nh5 {[%emt 0:01:06]} 24. Bxg7 {[%emt 0:00:00]} Kxg7 {[%emt 0:03:53]} 25. Qf2 {[%emt 0:00:00]} Nf4 {[%emt 0:04:30]} 26. Rfe1 {[%emt 0:00:00]} Kg8 {[%emt 0:18:10]} 27. Kh1 {[%emt 0:00:00]} d4 {[%emt 0:03:52]} 28. cxd4 {[%emt 0:00:00]} Bxb3 {[%emt 0:00:17]} 29. axb3 {[%emt 0:00:00]} Qb6 {[%emt 0:01:06]} 30. Ng4 {[%emt 0:05:54]} Rxe1+ {[%emt 0:01:45]} 31. Qxe1 {[%emt 0:00:11]} Qxb3 {[%emt 0:01:44]} 32. Rd2 {[%emt 0:02:30]} Rc8 {[%emt 0:02:47]} 33. h3 {[%emt 0:02:44]} Qb4 {[%emt 0:04:25]} 34. Qe3 {[%emt 0:01:41]} Nd5 {[%emt 0:01:04]} 35. Qe2 {[%emt 0:00:00]} Rc1+ {[%emt 0:00:00]} 36. Kh2 {[%emt 0:00:02]} Rc8 {[%emt 0:00:15]} 37. Kh1 {[%emt 0:00:36]} h5 {[%emt 0:00:27]} 38. Ne5 {[%emt 0:00:22]} Rc1+ {[%emt 0:00:32]} 39. Kh2 {[%emt 0:00:04]} Qd6 {[%emt 0:00:24]} 40. Qe4 {[%emt 0:00:58]} Rc7 {[%emt 0:00:46]} 41. Kg1 {[%emt 0:00:29]} Nf6 {[%emt 0:00:29]} 42. Qf4 {[%emt 0:00:10]} Nd5 {[%emt 0:01:07]} 43. Qe4 {[%emt 0:00:13]} Kg7 {[%emt 0:00:00]} 44. Kf2 {[%emt 0:00:50]} Rc1 {[%emt 0:00:26]} 45. Nd3 {[%emt 0:00:36]} Rc4 {[%emt 0:00:25]} 46. Qe5+ {[%emt 0:00:38]} Qxe5 {[%emt 0:00:06]} 47. dxe5 {[%emt 0:00:42]} Rd4 {[%emt 0:00:53]} 48. Ke2 {[%emt 0:00:35]} Nb6 {[%emt 0:00:11]} 49. Rc2 {[%emt 0:00:31]} Nc4 {[%emt 0:00:43]} 50. f4 {[%emt 0:00:35]} Re4+ {[%emt 0:00:15]} 51. Kf2 {[%emt 0:00:25]} h4 {[%emt 0:00:57]} 52. Re2 {[%emt 0:00:34]} Rd4 {[%emt 0:00:12]} 53. b3 {[%emt 0:00:35]} Rxd3 {[%emt 0:00:15]} 54. bxc4 {[%emt 0:00:04]} Rd4 {[%emt 0:00:03]} 55. Kf3 {[%emt 0:00:17]} Rxc4 {[%emt 0:00:03]} 56. Kg4 {[%emt 0:00:22]} b5 {[%emt 0:00:20]} 57. Rf2 {[%emt 0:00:08]} b4 {[%emt 0:00:21]} 58. Kxh4 {[%emt 0:00:05]} b3 {[%emt 0:00:12]} 59. g3 {[%emt 0:00:32]} Rb4 {[%emt 0:00:20]} 60. Rb2 {[%emt 0:00:05]} a5 {[%emt 0:00:02]} 61. Kg4 {[%emt 0:00:27]} a4 {[%emt 0:00:03]} 62. Kf3 {[%emt 0:00:06]} a3 {[%emt 0:00:04]} 63. Rb1 {[%emt 0:00:20]} a2 {[%emt 0:00:05]} 64. Ra1 {[%emt 0:00:06]} b2 {[%emt 0:00:02]} 0-1

[Event "36th Indian-ch U13 Girls 2023"]
[Site "Secunderabad"]
[Date "2023.12.07"]
[Round "7.9"]
[White "Akshaya Sathi"]
[Black "Durga Karthika Lellapalli"]
[Result "1-0"]
[ECO "C45"]
[WhiteElo "1542"]
[BlackElo "1408"]
[Annotator "NA RC"]
[PlyCount "123"]
[EventDate "2023.12.04"]
[EventType "swiss"]
[EventCountry "IND"]
[SourceTitle "playchess.com"]
[Source "ChessBase"]
[SourceQuality "1"]
[TimeControl "5400+30"]

1. e4 {[%emt 0:00:24]} e5 {[%emt 0:00:08]} 2. Nf3 {[%emt 0:00:48]} Nc6 {[%emt 0:00:09]} 3. d4 {[%emt 0:00:39]} exd4 {[%emt 0:00:25]} 4. Nxd4 {[%emt 0:00:20]} Nf6 {[%emt 0:00:25]} 5. Nxc6 {[%emt 0:00:47]} bxc6 {[%emt 0:00:10]} 6. e5 {[%emt 0:00:27]} Nd5 {[%emt 1:32:13]} 7. c4 {[%emt 0:00:52]} Nb6 {[%emt 0:00:00]} 8. Bd3 {[%emt 0:00:43]} d5 {[%emt 0:00:00]} 9. exd6 {[%emt 0:07:18]} cxd6 {[%emt 0:00:00]} 10. O-O {[%emt 0:02:10]} Be7 {[%emt 0:00:00]} 11. Nc3 {[%emt 0:03:11]} O-O {[%emt 0:00:00]} 12. Qc2 {[%emt 0:06:45]} h6 {[%emt 0:00:00]} 13. Bf4 {[%emt 0:02:26]} Bb7 {[%emt 0:00:00]} 14. Rad1 {[%emt 0:03:07]} d5 {[%emt 0:00:00]} 15. cxd5 {[%emt 0:02:33]} cxd5 {[%emt 0:00:00]} 16. Bf5 {[%emt 0:13:12]} Bd6 {[%emt 0:00:00]} 17. Bxd6 {[%emt 0:04:42]} Qxd6 {[%emt 0:00:00]} 18. Rd4 {[%emt 0:01:52]} Rfe8 {[%emt 0:00:00]} 19. Rfd1 {[%emt 0:04:33]} Re5 {[%emt 0:00:00]} 20. Bd3 {[%emt 0:08:10]} Rae8 {[%emt 0:00:00]} 21. Bf1 {[%emt 0:00:21]} Qc6 {[%emt 0:00:00]} 22. Qc1 {[%emt 0:04:55]} R8e6 {[%emt 0:00:00]} 23. Nb5 {[%emt 0:07:22]} Nc4 {[%emt 0:04:18]} 24. Rxc4 {[%emt 0:01:47]} dxc4 {[%emt 0:01:10]} 25. Nd4 {[%emt 0:00:04]} Qe8 {[%emt 0:02:19]} 26. Nxe6 {[%emt 0:00:15]} Qxe6 {[%emt 0:00:13]} 27. Qxc4 {[%emt 0:04:43]} Bd5 {[%emt 0:01:16]} 28. Qc2 {[%emt 0:00:01]} g6 {[%emt 0:01:01]} 29. b3 {[%emt 0:00:20]} Rg5 {[%emt 0:00:29]} 30. g3 {[%emt 0:03:41]} Re5 {[%emt 0:00:36]} 31. Bg2 {[%emt 0:01:39]} Re1+ {[%emt 0:00:31]} 32. Rxe1 {[%emt 0:01:38]} Qxe1+ {[%emt 0:00:01]} 33. Bf1 {[%emt 0:00:01]} Be4 {[%emt 0:00:46]} 34. Qe2 {[%emt 0:01:11]} Qxe2 {[%emt 0:00:39]} 35. Bxe2 {[%emt 0:00:03]} Kf8 {[%emt 0:00:16]} 36. f3 {[%emt 0:02:04]} Bb1 {[%emt 0:00:07]} 37. a3 {[%emt 0:00:04]} Ke7 {[%emt 0:00:04]} 38. Kf2 {[%emt 0:00:08]} Kd6 {[%emt 0:00:17]} 39. Ke3 {[%emt 0:00:05]} Kc5 {[%emt 0:00:36]} 40. Bd3 {[%emt 0:01:16]} Ba2 {[%emt 0:00:19]} 41. Bc2 {[%emt 0:00:19]} a5 {[%emt 0:00:11]} 42. Kd3 {[%emt 0:00:39]} a4 {[%emt 0:00:30]} 43. Kc3 {[%emt 0:00:08]} axb3 {[%emt 0:00:11]} 44. Bxb3 {[%emt 0:00:05]} Bb1 {[%emt 0:00:24]} 45. Bxf7 {[%emt 0:00:08]} g5 {[%emt 0:00:12]} 46. a4 {[%emt 0:03:55]} Bf5 {[%emt 0:00:19]} 47. Bc4 {[%emt 0:00:56]} Bd7 {[%emt 0:00:30]} 48. a5 {[%emt 0:00:54]} Bc6 {[%emt 0:00:26]} 49. f4 {[%emt 0:00:49]} gxf4 {[%emt 0:00:13]} 50. gxf4 {[%emt 0:00:02]} Be4 {[%emt 0:00:47]} 51. a6 {[%emt 0:00:01]} Bc6 {[%emt 0:00:56]} 52. f5 {[%emt 0:00:21]} Kd6 {[%emt 0:00:40]} 53. Kd4 {[%emt 0:00:22]} Ke7 {[%emt 0:00:11]} 54. Bd5 {[%emt 0:00:15]} Bxd5 {[%emt 0:00:32]} 55. Kxd5 {[%emt 0:00:02]} Kf6 {[%emt 0:00:07]} 56. a7 {[%emt 0:00:04]} Kxf5 {[%emt 0:00:03]} 57. a8=Q {[%emt 0:00:04]} h5 {[%emt 0:00:04]} 58. Qf8+ {[%emt 0:00:07]} Kg4 {[%emt 0:00:03]} 59. Ke4 {[%emt 0:00:04]} h4 {[%emt 0:00:03]} 60. Qg7+ {[%emt 0:00:06]} Kh3 {[%emt 0:00:04]} 61. Kf3 {[%emt 0:00:03]} Kxh2 {[%emt 0:00:07]} 62. Qg2# {[%emt 0:00:03]} 1-0

[Event "36th Indian-ch U13 Girls 2023"]
[Site "Secunderabad"]
[Date "2023.12.07"]
[Round "7.10"]
[White "Anushka Jain"]
[Black "Goddeti Hima Tejaswini"]
[Result "1/2-1/2"]
[ECO "A03"]
[WhiteElo "1359"]
[BlackElo "1507"]
[Annotator "NA RC"]
[PlyCount "67"]
[EventDate "2023.12.04"]
[EventType "swiss"]
[EventCountry "IND"]
[SourceTitle "playchess.com"]
[Source "ChessBase"]
[SourceQuality "1"]
[TimeControl "5400+30"]

1. f4 {[%emt 0:04:11]} d5 {[%emt 0:00:53]} 2. Nf3 {[%emt 0:00:19]} g6 {[%emt 0:00:55]} 3. g3 {[%emt 0:00:16]} Bg7 {[%emt 0:01:17]} 4. Bg2 {[%emt 0:00:01]} Nf6 {[%emt 0:01:22]} 5. d3 {[%emt 0:00:15]} O-O {[%emt 0:03:03]} 6. O-O {[%emt 0:00:02]} c5 {[%emt 0:02:13]} 7. c3 {[%emt 0:00:11]} Nc6 {[%emt 0:02:00]} 8. Na3 {[%emt 0:00:51]} b6 {[%emt 0:09:12]} 9. e4 {[%emt 0:09:00]} Bb7 {[%emt 0:05:49]} 10. e5 {[%emt 0:00:38]} Ne8 {[%emt 0:02:18]} 11. d4 {[%emt 0:07:20]} cxd4 {[%emt 0:08:16]} 12. cxd4 {[%emt 0:03:40]} Nc7 {[%emt 0:06:36]} 13. Bh3 {[%emt 0:01:27]} f5 {[%emt 0:01:58]} 14. Be3 {[%emt 0:06:41]} Bh6 {[%emt 0:05:32]} 15. Nh4 {[%emt 0:07:07]} e6 {[%emt 0:03:17]} 16. Nf3 {[%emt 0:07:58]} Ba6 {[%emt 0:03:28]} 17. Rf2 {[%emt 0:01:27]} Na5 {[%emt 0:03:30]} 18. b3 {[%emt 0:01:33]} Qe7 {[%emt 0:01:38]} 19. Nc2 {[%emt 0:05:50]} Rac8 {[%emt 0:02:33]} 20. Bd2 {[%emt 0:03:10]} Nc6 {[%emt 0:01:06]} 21. Bf1 {[%emt 0:06:25]} Bxf1 {[%emt 0:02:31]} 22. Qxf1 {[%emt 0:01:14]} Qd7 {[%emt 0:00:35]} 23. b4 {[%emt 0:04:50]} a5 {[%emt 0:02:23]} 24. a3 {[%emt 0:03:38]} Ra8 {[%emt 0:03:01]} 25. b5 {[%emt 0:00:50]} Na7 {[%emt 0:00:32]} 26. a4 {[%emt 0:00:04]} Rfc8 {[%emt 0:04:18]} 27. Ne3 {[%emt 0:02:09]} Ne8 {[%emt 0:02:28]} 28. Ne1 {[%emt 0:07:06]} Bf8 {[%emt 0:02:56]} 29. N1c2 {[%emt 0:00:58]} Kh8 {[%emt 0:04:06]} 30. Kh1 {[%emt 0:01:35]} Ng7 {[%emt 0:01:30]} 31. Kg1 {[%emt 0:01:49]} Be7 {[%emt 0:01:53]} 32. Qg2 {[%emt 0:02:47]} g5 {[%emt 0:06:27]} 33. Kf1 {[%emt 0:02:14]} gxf4 {[%emt 0:02:47]} 34. gxf4 {[%emt 0:09:54]} 1/2-1/2